bitfinex/quotes_BTCUSD_20251110
["timestamp","ask_amount","ask_price","bid_price","bid_amount"]
[1762806744509,0.68179141,106100.0,106090.0,0.00286757]
[1762806746162,0.68179141,106100.0,106090.0,0.19038675]
[1762806746591,0.45012851,106100.0,106090.0,0.19038675]
[1762806746797,0.5792871,106100.0,106090.0,0.18938675]
[1762806747003,0.5802871,106100.0,106090.0,0.18938675]
[1762806747643,0.5802871,106100.0,106090.0,0.00086757]
[1762806748588,0.5802871,106100.0,106080.0,0.13136002]
[1762806748589,0.21570918,106090.0,106080.0,0.13136002]
[1762806748875,0.06954779,106090.0,106080.0,0.18853695]
[1762806750552,0.06954779,106090.0,106080.0,0.23924695]
[1762806750553,0.01757779,106090.0,106080.0,0.23924695]
[1762806750970,0.01757779,106090.0,106080.0,0.21550695]
[1762806751787,0.01757779,106090.0,106080.0,0.23924695]
[1762806751988,0.02794779,106090.0,106080.0,0.21550695]
[1762806752190,0.23209697,106090.0,106080.0,0.20013695]
[1762806752395,0.25687697,106090.0,106080.0,0.20013695]
[1762806752767,0.10631671,106090.0,106080.0,0.18853695]
[1762806752975,0.01757779,106090.0,106080.0,0.23924695]
[1762806754136,0.2620776,106100.0,106090.0,0.18851918]
[1762806754625,0.2777076,106100.0,106090.0,0.18851918]
[1762806755372,0.08920474,106100.0,106090.0,0.18851918]
[1762806755557,0.27770615,106100.0,106090.0,0.18851918]
[1762806755757,0.01866474,106100.0,106090.0,0.21620918]
[1762806755964,0.04443474,106100.0,106090.0,0.0116]
[1762806756204,0.25879615,106100.0,106080.0,0.20037078]
[1762806756429,0.05352,106090.0,106080.0,0.18877078]
[1762806756833,0.02866,106090.0,106080.0,0.18877078]
[1762806757040,0.02866,106090.0,106080.0,0.20037078]
[1762806757214,0.0122,106090.0,106080.0,0.21646078]
[1762806757412,0.00931,106100.0,106090.0,0.18851918]
[1762806757638,0.036,106110.0,106090.0,0.18851918]
[1762806757639,0.01114,106110.0,106100.0,0.18850141]
[1762806757840,0.24260985,106120.0,106100.0,0.23942141]
[1762806758087,0.24260985,106120.0,106110.0,0.18848364]
[1762806758448,0.07060388,106120.0,106110.0,0.18848364]
[1762806758634,0.25906976,106120.0,106110.0,0.18848364]
[1762806759435,0.26106976,106120.0,106110.0,0.18848364]
[1762806759655,0.03128388,106120.0,106110.0,0.22766364]
[1762806760054,0.03128388,106120.0,106110.0,0.20457364]
[1762806760284,0.01361908,106120.0,106110.0,0.20457364]
[1762806760731,0.00147908,106120.0,106110.0,0.54833154]
[1762806760900,0.20640496,106120.0,106110.0,0.20457364]
[1762806761259,0.18848364,106110.0,106100.0,0.03483]
[1762806761503,0.04863,106110.0,106100.0,0.18850141]
[1762806761942,0.02377,106110.0,106100.0,0.18850141]
[1762806762120,0.04863,106110.0,106100.0,0.18850141]
[1762806762325,0.04863,106110.0,106090.0,0.55330303]
[1762806762326,0.23711364,106110.0,106090.0,0.55330303]
[1762806762511,0.23711364,106110.0,106090.0,0.23263513]
[1762806762728,0.592904,106110.0,106100.0,0.001]
[1762806763182,0.66870682,106110.0,106100.0,0.001]
[1762806763385,0.69356682,106110.0,106100.0,0.001]
[1762806763768,0.7112263,106110.0,106100.0,0.001]
[1762806763966,0.68181577,106110.0,106100.0,0.001]
[1762806764182,0.7112263,106110.0,106100.0,0.001]
[1762806764510,0.18850141,106100.0,106090.0,0.001]
[1762806764669,0.31979418,106100.0,106090.0,0.001]
[1762806764877,0.33979418,106100.0,106090.0,0.18951918]
[1762806765087,0.33979418,106100.0,106090.0,0.001]
[1762806765443,0.18851918,106090.0,106080.0,0.53279762]
[1762806765647,0.20851918,106090.0,106080.0,0.53279762]
[1762806766107,0.02,106090.0,106080.0,0.53279762]
[1762806766525,0.24983918,106090.0,106080.0,0.53279762]
[1762806766727,0.06132,106090.0,106080.0,0.53279762]
[1762806767065,0.24983918,106090.0,106080.0,0.21179762]
[1762806767588,0.24983918,106090.0,106080.0,0.20019762]
[1762806767790,0.24983918,106090.0,106080.0,0.20219762]
[1762806768016,0.06132,106090.0,106080.0,0.20219762]
[1762806768684,0.03646,106090.0,106080.0,0.20219762]
[1762806769133,0.02,106090.0,106080.0,0.56204552]
[1762806769697,0.07,106090.0,106080.0,0.56204552]
[1762806772110,0.08619,106090.0,106080.0,0.20219762]
[1762806772674,0.27470918,106090.0,106080.0,0.21782762]
[1762806772896,0.29945918,106090.0,106080.0,0.20219762]
[1762806773117,0.11094,106090.0,106080.0,0.20219762]
[1762806773316,0.08619,106090.0,106080.0,0.20219762]
[1762806773499,0.27470918,106090.0,106080.0,0.20219762]
[1762806773919,0.08619,106090.0,106080.0,0.21782762]
[1762806774120,0.07,106090.0,106080.0,0.21782762]
[1762806774326,0.25851918,106090.0,106080.0,0.21782762]
[1762806774823,0.27470918,106090.0,106080.0,0.21782762]
[1762806774997,0.29945918,106090.0,106080.0,0.20219762]
[1762806775390,0.11094,106090.0,106080.0,0.20219762]
[1762806775639,0.08619,106090.0,106080.0,0.20219762]
[1762806777296,0.28080918,106090.0,106080.0,0.20219762]
[1762806777518,0.09229,106090.0,106080.0,0.20219762]
[1762806778211,0.11598,106090.0,106080.0,0.20219762]
[1762806779005,0.07,106090.0,106080.0,0.22870762]
[1762806779230,0.07,106090.0,106080.0,0.25256762]
[1762806779892,0.08161,106090.0,106080.0,0.22870762]
[1762806780426,0.27012918,106090.0,106080.0,0.22870762]
[1762806780638,0.28579918,106090.0,106080.0,0.21363762]
[1762806780842,0.07,106090.0,106080.0,0.25256762]
[1762806781049,0.07,106090.0,106080.0,0.57323552]
[1762806781938,0.05,106090.0,106080.0,1.21690342]
[1762806782149,0.05,106090.0,106080.0,0.89623552]
[1762806782534,0.05,106090.0,106080.0,1.21690342]
[1762806782721,0.05,106090.0,106080.0,0.89623552]
[1762806782924,0.05,106090.0,106080.0,1.24523407]
[1762806783483,0.05,106090.0,106080.0,0.92456617]
[1762806783660,0.05,106090.0,106080.0,0.60389827]
[1762806783861,0.05,106090.0,106080.0,0.92456617]
[1762806787010,0.05,106090.0,106080.0,1.24516387]
[1762806789568,0.05,106090.0,106080.0,1.28134615]
[1762806790513,0.05,106090.0,106080.0,1.75495911]
[1762806790855,1e-08,106090.0,106080.0,1.75495911]
[1762806791268,1e-08,106090.0,106080.0,1.75295911]
[1762806791486,0.02047908,106120.0,106110.0,0.18848364]
[1762806791644,0.02047908,106120.0,106110.0,0.53500644]
[1762806791852,0.02047908,106120.0,106110.0,0.55886644]
[1762806793837,0.02047908,106120.0,106110.0,0.55986644]
[1762806794457,0.02047908,106120.0,106110.0,0.55886644]
[1762806794886,0.02047908,106120.0,106110.0,0.56186644]
[1762806795334,0.23622496,106120.0,106110.0,0.20230364]
[1762806795522,0.07144908,106120.0,106110.0,0.19148364]
[1762806796066,0.03208908,106120.0,106110.0,0.56186644]
[1762806796592,0.03208908,106120.0,106110.0,0.24123364]
[1762806797156,0.03208908,106120.0,106110.0,0.53800644]
[1762806798459,0.03208908,106120.0,106110.0,0.21737364]
[1762806798802,0.03208908,106120.0,106110.0,0.53800644]
[1762806799609,0.03208908,106120.0,106110.0,0.21737364]
[1762806799814,0.22055496,106120.0,106110.0,0.53800644]
[1762806800332,0.25991496,106120.0,106110.0,0.20230364]
[1762806800759,0.07144908,106120.0,106110.0,0.20230364]
[1762806800973,0.07144908,106120.0,106110.0,0.19148364]
[1762806801468,0.04775908,106120.0,106110.0,0.20230364]
[1762806801657,0.23622496,106120.0,106110.0,0.20230364]
[1762806801847,0.25991496,106120.0,106110.0,0.20230364]
[1762806803019,0.25991496,106120.0,106110.0,0.19148364]
[1762806803230,0.04775908,106120.0,106110.0,0.20230364]
[1762806804400,0.02047908,106120.0,106110.0,0.56183644]
[1762806805501,0.02047908,106120.0,106110.0,0.53833644]
[1762806806451,0.03192908,106120.0,106110.0,0.53833644]
[1762806806655,0.03192908,106120.0,106110.0,0.21770364]
[1762806807124,0.03192908,106120.0,106110.0,0.24603068]
[1762806807666,0.08192908,106120.0,106110.0,0.24603068]
[1762806808385,0.08192908,106120.0,106110.0,0.56666348]
[1762806810308,0.07047908,106120.0,106110.0,0.26953068]
[1762806810522,0.07047908,106120.0,106110.0,0.59016348]
[1762806810709,0.09710908,106120.0,106110.0,0.24603068]
[1762806810954,0.30858496,106120.0,106110.0,0.23063068]
[1762806811293,0.30858496,106120.0,106110.0,0.21981068]
[1762806814992,0.12011908,106120.0,106110.0,0.21981068]
[1762806815193,0.30858496,106120.0,106110.0,0.21981068]
[1762806818340,0.71362329,106120.0,106110.0,0.03132704]
[1762806818543,0.68856058,106120.0,106110.0,0.19148364]
[1762806818747,0.08192908,106120.0,106110.0,0.20230364]
[1762806818906,0.07047908,106120.0,106110.0,0.24120364]
[1762806819103,0.07047908,106120.0,106110.0,0.23920364]
[1762806819308,0.07047908,106120.0,106110.0,0.55883644]
[1762806819539,0.07047908,106120.0,106110.0,0.88283644]
[1762806820058,0.07047908,106120.0,106110.0,0.91116268]
[1762806825915,0.07047908,106120.0,106110.0,0.59052988]
[1762806826116,0.07047908,106120.0,106110.0,0.91116268]
[1762806826316,0.05047908,106120.0,106110.0,0.91116268]
[1762806826721,0.05047908,106120.0,106110.0,1.23179548]
[1762806826920,0.05047908,106120.0,106110.0,0.91116268]
[1762806827356,0.05047908,106120.0,106110.0,0.91016268]
[1762806827713,0.05047908,106120.0,106110.0,0.91116268]
[1762806827909,0.05047908,106120.0,106110.0,1.26797776]
[1762806828089,0.05047908,106120.0,106110.0,1.26697776]
[1762806828497,0.05047908,106120.0,106110.0,1.26997776]
[1762806828498,0.00047908,106120.0,106110.0,1.26997776]
[1762806828694,0.00047908,106120.0,106110.0,1.35393496]
[1762806828911,0.02,106150.0,106130.0,0.52087052]
[1762806829112,0.02,106150.0,106140.0,0.52001701]
[1762806829360,0.02,106150.0,106140.0,0.55891701]
[1762806829598,0.02,106150.0,106140.0,0.58723368]
[1762806836464,0.02,106150.0,106140.0,0.58923368]
[1762806840503,0.02,106150.0,106140.0,1.23286648]
[1762806840953,0.00203179,106160.0,106150.0,0.18841262]
[1762806841165,0.02203179,106160.0,106150.0,0.88198542]
[1762806841596,0.02203179,106160.0,106150.0,0.91029909]
[1762806841798,0.02203179,106160.0,106150.0,0.58966629]
[1762806842310,0.02203179,106160.0,106150.0,0.91029909]
[1762806843108,0.21042666,106160.0,106150.0,0.72188647]
[1762806843313,0.26164666,106160.0,106150.0,0.22769629]
[1762806843511,0.07325179,106160.0,106150.0,0.2272221]
[1762806843927,0.04970179,106160.0,106150.0,0.2272221]
[1762806844140,0.23809666,106160.0,106150.0,0.2272221]
[1762806844369,0.26164666,106160.0,106150.0,0.2272221]
[1762806844733,0.23809666,106160.0,106150.0,0.2272221]
[1762806845591,0.28809666,106160.0,106150.0,0.2272221]
[1762806846668,0.09970179,106160.0,106150.0,0.2272221]
[1762806847202,0.03447179,106160.0,106150.0,0.2661921]
[1762806848102,0.02203179,106160.0,106150.0,0.5868249]
[1762806848943,0.02203179,106160.0,106150.0,0.2661921]
[1762806849303,0.21042666,106160.0,106150.0,0.2661921]
[1762806849714,0.02203179,106160.0,106150.0,0.2661921]
[1762806850526,0.02203179,106160.0,106150.0,0.58648587]
[1762806856667,0.03447179,106160.0,106150.0,0.2435321]
[1762806856874,0.04970179,106160.0,106150.0,0.2272221]
[1762806857075,0.07325179,106160.0,106150.0,0.2272221]
[1762806857324,0.26164666,106160.0,106150.0,0.2272221]
[1762806857733,0.04970179,106160.0,106150.0,0.2272221]
[1762806857934,0.03447179,106160.0,106150.0,0.2661921]
[1762806858571,0.02203179,106160.0,106150.0,0.2661921]
[1762806858989,0.02203179,106160.0,106150.0,0.58648587]
[1762806859396,0.00203179,106160.0,106150.0,0.58648587]
[1762806859592,0.00203179,106160.0,106150.0,0.90948587]
[1762806860502,0.02203179,106160.0,106150.0,0.90948587]
[1762806860727,0.02203179,106160.0,106150.0,0.91048587]
[1762806861496,0.02203179,106160.0,106150.0,0.91148587]
[1762806867466,0.00203179,106160.0,106150.0,0.91148587]
[1762806869067,0.00203179,106160.0,106150.0,0.94766815]
[1762806871727,0.00203179,106160.0,106150.0,1.03162535]
[1762806872179,0.00203179,106160.0,106150.0,1.03062535]
[1762806872612,0.02,106190.0,106180.0,0.18835938]
[1762806872791,0.03765244,106190.0,106180.0,0.55990315]
[1762806873352,0.01835292,106190.0,106180.0,0.5882087]
[1762806873746,0.01849665,106190.0,106180.0,0.5882087]
[1762806873940,0.01849665,106190.0,106180.0,0.58656808]
[1762806874544,0.01949665,106190.0,106180.0,0.58656808]
[1762806874999,0.01849665,106190.0,106180.0,0.58656808]
[1762806875221,0.00084421,106190.0,106180.0,0.58656808]
[1762806875369,0.00084421,106190.0,106180.0,0.58756808]
[1762806875573,0.00084421,106190.0,106180.0,0.91056808]
[1762806878145,0.00084421,106190.0,106180.0,1.02682195]
[1762806878942,0.00084421,106190.0,106180.0,1.02582195]
[1762806879950,0.00084421,106190.0,106180.0,1.02682195]
[1762806880389,0.00084421,106190.0,106180.0,1.02882195]
[1762806883993,0.0004,106200.0,106190.0,0.22452393]
[1762806884193,0.0004,106200.0,106190.0,0.91361147]
[1762806884411,0.0004,106200.0,106190.0,0.5933177]
[1762806884631,0.0004,106200.0,106190.0,0.91738437]
[1762806884830,0.0004,106200.0,106190.0,0.5970906]
[1762806885256,0.0004,106200.0,106190.0,0.91738437]
[1762806885659,0.0004,106210.0,106200.0,0.86509373]
[1762806885840,0.0004,106210.0,106200.0,0.99641532]
[1762806887098,0.0004,106210.0,106200.0,0.99741532]
[1762806887558,0.0004,106210.0,106200.0,0.99941532]
[1762806888665,0.0004,106210.0,106200.0,1.01981532]
[1762806890759,0.0004,106220.0,106210.0,0.51130618]
[1762806891004,0.0004,106220.0,106210.0,0.88284995]
[1762806891249,0.00110018,106220.0,106210.0,0.91903223]
[1762806891477,0.00110018,106220.0,106210.0,0.92903222]
[1762806891478,1e-08,106220.0,106210.0,0.92903222]
[1762806892815,1e-08,106220.0,106210.0,0.93103222]
[1762806893041,1e-08,106220.0,106210.0,0.93403222]
[1762806893485,1e-08,106220.0,106210.0,0.93203222]
[1762806893698,1e-08,106220.0,106210.0,0.93603222]
[1762806894364,1e-08,106220.0,106210.0,1.00816236]
[1762806894580,1e-08,106220.0,106210.0,1.03645153]
[1762806896344,1e-08,106220.0,106210.0,1.03295153]
[1762806896546,1e-08,106220.0,106210.0,1.02295154]
[1762806899780,1e-08,106220.0,106210.0,0.98676926]
[1762806900099,1e-08,106220.0,106210.0,1.02295154]
[1762806901260,1e-08,106220.0,106210.0,1.01995154]
[1762806901471,1e-08,106220.0,106210.0,1.01595154]
[1762806901679,1e-08,106220.0,106210.0,1.01795154]
[1762806901905,1e-08,106220.0,106210.0,1.02095154]
[1762806908854,1e-08,106220.0,106210.0,1.34008907]
[1762806910961,1e-08,106230.0,106210.0,1.48558907]
[1762806911168,0.0002,106260.0,106250.0,0.18823529]
[1762806911417,0.00067929,106260.0,106250.0,0.89596011]
[1762806911632,0.00067929,106260.0,106250.0,1.20013659]
[1762806911855,0.00067929,106260.0,106250.0,1.25671887]
[1762806913253,0.0004,106270.0,106260.0,0.54739985]
[1762806913456,0.00054372,106270.0,106260.0,1.31728274]
[1762806913659,0.00054372,106270.0,106260.0,1.32660696]
[1762806914679,0.00054372,106270.0,106260.0,1.64832261]
[1762806916295,0.00054372,106270.0,106260.0,1.31928274]
[1762806916498,0.00054372,106270.0,106260.0,1.31728274]
[1762806916933,0.00054372,106270.0,106260.0,1.32028274]
[1762806917317,0.00170998,106270.0,106260.0,1.32128274]
[1762806917877,0.00170998,106270.0,106260.0,1.39095103]
[1762806920261,1e-08,106270.0,106260.0,1.71066668]
[1762806921037,1e-08,106270.0,106260.0,1.70766668]
[1762806921231,0.0002,106300.0,106290.0,0.51116445]
[1762806921533,0.0002,106300.0,106290.0,0.8803501]
[1762806921955,0.0002,106300.0,106290.0,0.89913834]
[1762806923093,0.01775658,106300.0,106290.0,0.89913834]
[1762806923926,0.01875658,106300.0,106290.0,0.89913834]
[1762806924326,0.01875658,106300.0,106290.0,0.96890692]
[1762806924577,0.03875658,106300.0,106290.0,0.96890692]
[1762806926842,0.03945597,106300.0,106290.0,0.96890692]
[1762806927924,0.03945597,106300.0,106290.0,0.94928692]
[1762806929254,0.03943779,106300.0,106290.0,0.94928692]
[1762806930027,0.01943779,106300.0,106290.0,0.94928692]
[1762806930228,0.00189939,106300.0,106290.0,0.94928692]
[1762806931036,0.01943964,106300.0,106290.0,0.94928692]
[1762806931241,0.00189939,106300.0,106290.0,0.94928692]
[1762806931645,0.02887939,106300.0,106290.0,0.51997269]
[1762806931844,0.40910535,106300.0,106290.0,0.18816445]
[1762806932048,0.0893897,106300.0,106290.0,0.18816445]
[1762806932343,0.0893897,106300.0,106290.0,0.5078801]
[1762806932569,0.0664197,106300.0,106290.0,0.19838445]
[1762806932884,0.0893897,106300.0,106290.0,0.19838445]
[1762806933936,0.0893897,106300.0,106290.0,0.18816445]
[1762806934862,0.27753645,106300.0,106290.0,0.18816445]
[1762806935181,0.0893897,106300.0,106290.0,0.18816445]
[1762806935924,0.27753645,106300.0,106290.0,0.18816445]
[1762806936331,0.0893897,106300.0,106290.0,0.18816445]
[1762806937359,0.25753645,106300.0,106290.0,0.18816445]
[1762806937582,0.60603944,106300.0,106290.0,0.18816445]
[1762806937734,0.02,106290.0,106280.0,0.18817236]
[1762806938082,0.08749031,106290.0,106280.0,0.18817236]
[1762806938235,0.03754031,106290.0,106280.0,0.55782801]
[1762806938638,0.06452031,106290.0,106280.0,0.51810801]
[1762806938886,0.08753463,106290.0,106280.0,0.51810801]
[1762806939021,0.08753463,106290.0,106280.0,0.52010801]
[1762806940076,0.06456463,106290.0,106280.0,0.53603801]
[1762806940688,0.06456463,106290.0,106280.0,0.52010801]
[1762806941008,0.08753463,106290.0,106280.0,0.52010801]
[1762806941496,0.04905463,106290.0,106280.0,0.24011236]
[1762806941696,0.04905463,106290.0,106280.0,0.55982801]
[1762806942066,0.04905463,106290.0,106280.0,0.53603801]
[1762806942377,0.05786814,106290.0,106280.0,0.53603801]
[1762806942578,0.05786814,106290.0,106280.0,0.21632236]
[1762806942878,0.05786814,106290.0,106280.0,0.52010801]
[1762806943078,0.08753463,106290.0,106280.0,0.52010801]
[1762806943282,0.09681833,106290.0,106280.0,0.52010801]
[1762806943495,0.03805093,106290.0,106280.0,0.87954366]
[1762806944115,0.01805093,106290.0,106280.0,0.87954366]
[1762806944713,0.01805093,106290.0,106280.0,1.20254366]
[1762806946205,0.0004663,106290.0,106280.0,1.20254366]
[1762806948444,0.0004663,106290.0,106280.0,1.23081864]
[1762806949762,0.0204663,106290.0,106280.0,1.23081864]
[1762806952804,0.0318963,106290.0,106280.0,0.85903801]
[1762806953233,0.0318963,106290.0,106280.0,1.20307366]
[1762806953546,0.0318963,106290.0,106280.0,0.75245801]
[1762806953907,0.0318963,106290.0,106280.0,1.07217366]
[1762806954318,0.0707563,106290.0,106280.0,0.39249236]
[1762806954484,0.0707563,106290.0,106280.0,0.71220801]
[1762806954679,0.0707563,106290.0,106280.0,0.39249236]
[1762806954894,0.0707563,106290.0,106280.0,0.38227236]
[1762806955096,0.0707563,106290.0,106280.0,0.05927236]
[1762806955744,0.0717563,106290.0,106280.0,0.05927236]
[1762806955976,0.0717563,106290.0,106280.0,0.05727236]
[1762806956527,0.08939847,106290.0,106280.0,0.05727236]
[1762806958636,0.08939847,106290.0,106280.0,0.37698801]
[1762806959120,0.08939847,106290.0,106280.0,0.38720801]
[1762806959527,0.05053847,106290.0,106280.0,0.40371801]
[1762806959700,0.0014663,106290.0,106280.0,1.06991366]
[1762806960314,0.0014663,106290.0,106280.0,0.75019801]
[1762806961754,0.0014663,106290.0,106280.0,1.06991366]
[1762806962493,0.0014663,106290.0,106280.0,0.75019801]
[1762806962925,0.0014663,106290.0,106280.0,1.06991366]
[1762806966966,0.0014663,106290.0,106280.0,1.09818965]
[1762806970952,0.0014663,106290.0,106280.0,0.77815853]
[1762806977244,0.0214663,106290.0,106280.0,0.77815853]
[1762806977465,0.0214663,106290.0,106280.0,0.81434081]
[1762806978554,0.0204663,106290.0,106280.0,0.81434081]
[1762806978788,0.0204663,106290.0,106280.0,0.81634081]
[1762806979507,0.0202,106300.0,106290.0,0.51116445]
[1762806979734,0.0002,106310.0,106300.0,0.51114675]
[1762806979950,0.00034358,106310.0,106300.0,0.88166693]
[1762806980164,0.00034358,106310.0,106300.0,0.88543624]
[1762806980374,0.00080976,106310.0,106300.0,0.96939344]
[1762806980596,0.01980977,106310.0,106300.0,0.96939344]
[1762806980807,0.00080976,106310.0,106300.0,1.00557572]
[1762806981010,0.00080976,106310.0,106300.0,1.00657572]
[1762806981221,0.00080976,106310.0,106300.0,0.92261852]
[1762806981621,0.00080976,106310.0,106300.0,1.00657572]
[1762806982244,0.00080976,106310.0,106300.0,0.92261852]
[1762806982439,0.00080976,106310.0,106300.0,0.92561852]
[1762806986510,0.01920001,106320.0,106310.0,0.54371151]
[1762806986683,0.01920001,106320.0,106310.0,0.99142328]
[1762806986891,0.00043304,106320.0,106310.0,0.99142328]
[1762806987433,0.00043304,106320.0,106310.0,1.01062329]
[1762806988285,0.00043304,106320.0,106310.0,1.01162329]
[1762806988762,0.00043304,106320.0,106310.0,1.01362329]
[1762806988913,0.00043304,106320.0,106310.0,1.01162329]
[1762806989345,0.00043304,106320.0,106310.0,1.01462329]
[1762806989703,0.00043304,106320.0,106310.0,1.33762329]
[1762806992289,0.0002,106340.0,106330.0,0.22427595]
[1762806992474,0.0002,106340.0,106330.0,0.67198772]
[1762806993064,0.00066598,106340.0,106330.0,0.99875559]
[1762806993268,1e-08,106340.0,106330.0,0.99875559]
[1762806993619,1e-08,106340.0,106330.0,1.31815577]
[1762806993820,0.0002,106350.0,106340.0,0.86305862]
[1762806994090,0.00034356,106350.0,106340.0,0.91220862]
[1762806994301,0.00034356,106350.0,106340.0,0.92186905]
[1762806995204,0.00034356,106350.0,106340.0,0.60446887]
[1762806995375,0.00034356,106350.0,106340.0,0.92786905]
[1762806995589,0.00034356,106350.0,106340.0,0.99810556]
[1762806996018,0.00034356,106350.0,106340.0,0.67870538]
[1762806997415,0.00034356,106350.0,106340.0,0.99810556]
[1762806997768,0.00034356,106350.0,106340.0,0.67870538]
[1762806997969,0.00034356,106350.0,106340.0,0.67281256]
[1762806998387,0.00034356,106350.0,106340.0,0.68222759]
[1762806999391,0.0005765,106350.0,106340.0,0.68222759]
[1762806999803,0.0005765,106350.0,106340.0,0.67281256]
[1762807000582,0.0005765,106350.0,106340.0,0.63663028]
[1762807000792,0.07004651,106350.0,106340.0,0.19784359]
[1762807001654,0.04661651,106350.0,106340.0,0.52797359]
[1762807001856,0.03129651,106350.0,106340.0,0.54625359]
[1762807002034,0.03129651,106350.0,106340.0,0.56899359]
[1762807002234,0.03129651,106350.0,106340.0,0.54625359]
[1762807002824,0.03129651,106350.0,106340.0,0.54425359]
[1762807003039,0.07004651,106350.0,106340.0,0.52897359]
[1762807003241,0.07004651,106350.0,106340.0,0.52997359]
[1762807004086,0.04661651,106350.0,106340.0,0.52997359]
[1762807004309,0.01957651,106350.0,106340.0,0.88439377]
[1762807004531,0.0005765,106350.0,106340.0,0.56399359]
[1762807004734,0.0005765,106350.0,106340.0,0.88339377]
[1762807004906,0.0015765,106350.0,106340.0,0.88339377]
[1762807006465,0.0005765,106350.0,106340.0,0.88339377]
[1762807006914,0.0005765,106350.0,106340.0,0.88539377]
[1762807011406,0.0005765,106350.0,106340.0,0.92157605]
[1762807011624,0.0005765,106350.0,106340.0,1.24097623]
[1762807012627,0.0005765,106350.0,106340.0,0.92157605]
[1762807012985,0.0005765,106350.0,106340.0,1.24097623]
[1762807013482,0.0005765,106350.0,106340.0,0.92157605]
[1762807014825,1e-08,106350.0,106340.0,1.24097623]
[1762807016451,1e-08,106350.0,106340.0,1.23897623]
[1762807016657,1e-08,106350.0,106340.0,1.24197623]
[1762807016998,1e-08,106350.0,106340.0,1.24397623]
[1762807017203,1e-08,106350.0,106340.0,1.24097623]
[1762807017396,1e-08,106350.0,106340.0,1.24497623]
[1762807017713,0.0002,106360.0,106350.0,0.23655829]
[1762807017714,1e-08,106360.0,106350.0,0.23655829]
[1762807017913,1e-08,106360.0,106350.0,0.95543024]
[1762807018312,0.00023292,106360.0,106350.0,0.95543024]
[1762807018847,0.00023292,106360.0,106350.0,0.95919728]
[1762807019267,0.00023292,106360.0,106350.0,0.99537956]
[1762807019666,0.00023292,106360.0,106350.0,0.99837956]
[1762807020130,0.00023292,106360.0,106350.0,0.99937956]
[1762807022086,0.00023292,106360.0,106350.0,0.6437971]
[1762807022263,0.01923293,106360.0,106350.0,0.9667971]
[1762807022465,0.03684617,106360.0,106350.0,0.9667971]
[1762807022704,0.03684617,106360.0,106350.0,0.9442671]
[1762807022912,0.03684617,106360.0,106350.0,0.9667971]
[1762807023252,0.03684617,106360.0,106350.0,0.9627971]
[1762807023709,0.03684617,106360.0,106350.0,0.9647971]
[1762807024343,0.03684617,106360.0,106350.0,1.28419728]
[1762807024529,0.00023292,106360.0,106350.0,1.32037956]
[1762807025233,1e-08,106360.0,106350.0,0.6815792]
[1762807025397,1e-08,106360.0,106350.0,1.32037956]
[1762807026042,0.0002,106370.0,106360.0,0.22422289]
[1762807026389,0.0002,106370.0,106360.0,0.59212307]
[1762807027135,0.0002,106370.0,106360.0,0.59412307]
[1762807027754,0.01920001,106370.0,106360.0,0.59412307]
[1762807027959,0.01920001,106370.0,106360.0,0.55794079]
[1762807028128,0.04709001,106370.0,106360.0,0.53901061]
[1762807028322,0.0646983,106370.0,106360.0,0.85841079]
[1762807028928,0.0646983,106370.0,106360.0,0.53901061]
[1762807029762,0.0368083,106370.0,106360.0,0.53901061]
[1762807029961,0.0368083,106370.0,106360.0,0.56154061]
[1762807030878,0.25272123,106370.0,106360.0,0.52326061]
[1762807031103,0.27613123,106370.0,106360.0,0.52326061]
[1762807031308,0.0881083,106370.0,106360.0,0.52326061]
[1762807031509,0.08834118,106370.0,106360.0,0.52326061]
[1762807031731,0.06493118,106370.0,106360.0,0.52326061]
[1762807033176,0.04732289,106370.0,106360.0,0.52326061]
[1762807034720,0.03158289,106370.0,106360.0,0.53901061]
[1762807034928,0.03158289,106370.0,106360.0,0.56726727]
[1762807035329,0.03158289,106370.0,106360.0,0.58979727]
[1762807036175,0.03158289,106370.0,106360.0,0.95228348]
[1762807036419,0.01943289,106370.0,106360.0,0.58979727]
[1762807036625,0.01943289,106370.0,106360.0,0.95228348]
[1762807040848,0.00043288,106370.0,106360.0,0.95228348]
[1762807044628,0.00043288,106370.0,106360.0,0.98846576]
[1762807044861,0.00043288,106370.0,106360.0,1.35095197]
[1762807045054,0.00043288,106370.0,106360.0,0.98846576]
[1762807046653,0.00043288,106370.0,106360.0,1.07242296]
[1762807050972,0.00043288,106370.0,106360.0,1.66640179]
[1762807053390,0.0002,106380.0,106370.0,0.22420521]
[1762807053592,0.0002,106380.0,106370.0,0.99347016]
[1762807053800,0.0002,106380.0,106370.0,1.07742736]
[1762807053952,0.00043285,106380.0,106370.0,1.07742736]
[1762807054816,0.00043285,106380.0,106370.0,1.07942736]
[1762807055773,0.00043285,106380.0,106370.0,1.15115288]
[1762807058320,0.00043285,106380.0,106370.0,1.17035289]
[1762807059014,0.00043285,106380.0,106370.0,1.17135289]
[1762807059408,0.00043285,106380.0,106370.0,1.16935289]
[1762807059731,0.00043285,106380.0,106370.0,1.49117457]
[1762807060322,0.00043285,106380.0,106370.0,1.17235289]
[1762807061947,0.00043285,106380.0,106370.0,1.49117457]
[1762807063345,0.00043285,106380.0,106370.0,1.17235289]
[1762807063732,0.00043285,106380.0,106370.0,1.49117457]
[1762807063937,0.00043285,106380.0,106370.0,1.17235289]
[1762807064389,0.00043285,106380.0,106370.0,1.49117457]
[1762807064811,0.00043285,106380.0,106370.0,1.17235289]
[1762807065318,0.01920001,106400.0,106390.0,0.51098759]
[1762807065597,0.01967873,106400.0,106390.0,1.17591095]
[1762807065802,0.02014431,106400.0,106390.0,1.20063095]
[1762807065977,0.02014431,106400.0,106390.0,1.22887795]
[1762807066909,0.02014431,106400.0,106390.0,1.22887795]
[1762807067529,0.02114431,106400.0,106390.0,1.22887795]
[1762807068801,0.07274431,106400.0,106390.0,0.351247]
[1762807069008,0.07274431,106400.0,106390.0,0.85805627]
[1762807069571,0.07274431,106400.0,106390.0,0.86105627]
[1762807070052,0.07174431,106400.0,106390.0,0.85805627]
[1762807070457,0.07174431,106400.0,106390.0,0.86105627]
[1762807070677,0.07174431,106400.0,106390.0,0.86005627]
[1762807071668,0.07174431,106400.0,106390.0,0.54123459]
[1762807071832,0.07174431,106400.0,106390.0,0.86005627]
[1762807072437,0.25971423,106400.0,106390.0,0.54123459]
[1762807072644,0.07174431,106400.0,106390.0,0.86005627]
[1762807075512,0.59757412,106400.0,106390.0,0.21823459]
[1762807075713,0.57853591,106400.0,106390.0,0.030247]
[1762807075935,0.57853591,106400.0,106390.0,0.21823459]
[1762807076377,0.57853591,106400.0,106390.0,0.030247]
[1762807076572,0.57853591,106400.0,106390.0,0.21823459]
[1762807077415,0.25971423,106400.0,106390.0,0.030247]
[1762807077572,0.28927936,106400.0,106390.0,0.030247]
[1762807077764,0.60810104,106400.0,106390.0,0.030247]
[1762807078324,0.65922128,106400.0,106390.0,0.030247]
[1762807078532,0.57853591,106400.0,106390.0,0.21823459]